bitfinex/quotes_SOLUSD_20230703
["timestamp","ask_amount","ask_price","bid_price","bid_amount"]
[1688404612310,183.301,19.089,19.076,10.83719922]
[1688404612707,183.301,19.089,19.08,22.169]
[1688404612915,64.92,19.1,19.081,20.0]
[1688404612916,22.159,19.09,19.081,20.0]
[1688404613121,57.034,19.094,19.083,79.229]
[1688404613122,22.157,19.091,19.083,79.229]
[1688404613332,22.156,19.092,19.084,55.0]
[1688404613631,22.156,19.092,19.086,22.162]
[1688404614525,22.155,19.093,19.086,22.162]
[1688404615209,22.155,19.093,19.085,22.162]
[1688404615407,22.155,19.093,19.082,55.0]
[1688404615408,22.155,19.093,19.083,57.065]
[1688404616025,22.155,19.093,19.086,22.161]
[1688404616331,22.154,19.094,19.086,22.161]
[1688404616513,57.023,19.098,19.086,22.161]
[1688404616711,22.154,19.094,19.086,22.161]
[1688404619423,22.154,19.094,19.085,22.163]
[1688404622527,22.154,19.094,19.088,22.16]
[1688404623210,22.154,19.094,19.084,57.063]
[1688404623426,22.154,19.094,19.086,22.161]
[1688404623613,126.218,19.094,19.085,22.163]
[1688404625533,126.218,19.094,19.084,22.164]
[1688404625724,126.218,19.094,19.081,148.8946]
[1688404625909,126.218,19.094,19.082,75.0]
[1688404626426,126.218,19.094,19.085,22.163]
[1688404626618,22.154,19.094,19.085,79.223]
[1688404627225,22.154,19.094,19.088,22.16]
[1688404627438,57.01,19.102,19.089,20.0]
[1688404627723,22.143,19.104,19.094,79.185]
[1688404627927,22.139,19.107,19.1,22.146]
[1688404628740,79.133,19.107,19.096,57.026]
[1688404629929,79.133,19.107,19.092,104.069]
[1688404630138,183.126,19.107,19.094,57.033]
[1688404630311,183.126,19.107,19.096,22.15]
[1688404630917,79.149,19.103,19.096,22.15]
[1688404631727,22.143,19.103,19.096,22.15]
[1688404631920,10.58960509,19.113,19.096,22.15]
[1688404631921,56.989,19.109,19.096,22.15]
[1688404632426,56.983,19.111,19.096,22.15]
[1688404632738,42.85960509,19.113,19.101,79.157]
[1688404632739,89.247,19.113,19.101,79.157]
[1688404632937,22.134,19.111,19.105,22.14]
[1688404633123,160.907,19.117,19.105,22.14]
[1688404633325,22.132,19.113,19.105,22.14]
[1688404633526,160.907,19.117,19.105,22.14]
[1688404633527,22.132,19.112,19.105,22.14]
[1688404636441,22.131,19.114,19.105,126.144]
[1688404636737,22.127,19.117,19.105,126.144]
[1688404637032,22.127,19.117,19.109,79.122]
[1688404637540,22.127,19.117,19.109,22.135]
[1688404637938,126.065,19.117,19.107,22.137]
[1688404640041,22.127,19.117,19.108,55.0]
[1688404640347,22.126,19.118,19.11,79.117]
[1688404640840,13.52786495,19.131,19.11,79.117]
[1688404640841,103.888,19.127,19.11,79.117]
[1688404641145,22.121,19.123,19.111,55.0]
[1688404641440,22.118,19.124,19.114,79.101]
[1688404641640,56.935,19.127,19.118,22.125]
[1688404642031,22.118,19.124,19.118,22.125]
[1688404647129,160.838,19.125,19.112,56.979]
[1688404647345,104.83502626,19.133,19.112,56.979]
[1688404647346,160.77,19.133,19.116,56.942]
[1688404647532,22.111,19.131,19.123,79.064]
[1688404647851,22.108,19.134,19.123,79.064]
[1688404648145,22.104,19.137,19.126,56.937]
[1688404648348,56.896,19.141,19.124,55.0]
[1688404648648,22.099,19.141,19.129,22.111]
[1688404649649,79.011,19.137,19.128,22.113]
[1688404650034,56.9,19.139,19.128,22.113]
[1688404650351,55.0,19.138,19.128,22.113]
[1688404650554,22.106,19.135,19.128,22.113]
[1688404654640,79.017,19.135,19.128,22.113]
[1688404654945,55.0,19.134,19.128,22.113]
[1688404655141,22.109,19.133,19.128,22.113]
[1688404656549,22.109,19.133,19.125,56.939]
[1688404656550,55.0,19.132,19.125,22.116]
[1688404656735,22.111,19.13,19.123,22.119]
[1688404656942,79.037,19.13,19.116,103.938]
[1688404657137,79.037,19.13,19.121,22.122]
[1688404658271,182.905,19.13,19.121,22.122]
[1688404658661,182.905,19.13,19.12,22.122]
[1688404660236,182.905,19.13,19.115,10.83719922]
[1688404660439,182.905,19.13,19.118,22.124]
[1688404662870,22.111,19.13,19.122,22.12]
[1688404663036,22.111,19.13,19.125,22.117]
[1688404663240,22.111,19.131,19.125,22.117]
[1688404663441,103.818,19.14,19.125,126.012]
[1688404663634,19.9587,19.149,19.129,79.04]
[1688404663635,22.102,19.139,19.129,79.04]
[1688404663839,64.98,19.15,19.129,79.04]
[1688404663840,22.099,19.141,19.129,79.04]
[1688404664056,22.099,19.141,19.13,55.0]
[1688404664240,103.769,19.149,19.134,22.106]
[1688404664450,22.095,19.145,19.134,22.106]
[1688404664848,22.095,19.145,19.135,55.0]
[1688404665150,22.095,19.145,19.138,22.102]
[1688404665346,22.093,19.146,19.138,79.004]
[1688404665853,22.093,19.146,19.138,22.102]
[1688404673061,22.093,19.147,19.138,22.102]
[1688404673288,103.748,19.153,19.139,55.0]
[1688404673473,22.087,19.152,19.143,182.78]
[1688404673768,86.6439,19.17,19.144,55.0]
[1688404673967,22.086,19.152,19.148,22.09]
[1688404675856,50.24219905,19.169,19.148,22.09]
[1688404676050,22.086,19.153,19.148,22.09]
[1688404676863,22.081,19.156,19.148,22.09]
[1688404677067,22.081,19.157,19.152,22.086]
[1688404677247,103.677,19.166,19.152,22.086]
[1688404677449,22.077,19.16,19.156,22.081]
[1688404678454,22.077,19.16,19.155,22.081]
[1688404678653,22.077,19.161,19.155,22.081]
[1688404678966,32.49,19.17,19.16,22.077]
[1688404678967,56.81,19.17,19.16,22.077]
[1688404679157,22.07,19.167,19.16,22.077]
[1688404680053,22.07,19.167,19.162,22.074]
[1688404680255,22.07,19.167,19.161,22.075]
[1688404680451,22.07,19.167,19.16,22.076]
[1688404680862,22.07,19.167,19.159,22.077]
[1688404681074,22.07,19.167,19.16,22.076]
[1688404681578,22.07,19.167,19.158,90.8006]
[1688404682258,22.07,19.167,19.158,112.8796]
[1688404683867,22.07,19.167,19.158,90.8006]
[1688404685565,22.07,19.167,19.155,22.082]
[1688404687868,22.07,19.167,19.146,56.854]
[1688404688055,182.604,19.162,19.151,22.086]
[1688404688362,182.604,19.162,19.147,149.4454]
[1688404688562,55.0,19.161,19.147,92.5724]
[1688404688774,182.648,19.157,19.147,114.6634]
[1688404689073,182.648,19.157,19.138,64.9]
[1688404689273,22.086,19.152,19.142,22.097]
[1688404689476,22.086,19.153,19.146,22.093]
[1688404690057,22.086,19.153,19.145,22.094]
[1688404691574,125.829,19.153,19.144,22.095]
[1688404692868,22.086,19.153,19.144,22.095]
[1688404693976,22.086,19.153,19.145,55.0]
[1688404694284,42.06637071,19.169,19.147,22.091]
[1688404694571,22.082,19.156,19.15,22.088]
[1688404695960,56.842,19.159,19.151,55.0]
[1688404696174,22.081,19.157,19.153,22.084]
[1688404696368,56.835,19.161,19.153,22.084]
[1688404696674,56.835,19.161,19.15,56.864]
[1688404696675,22.081,19.157,19.154,77.083]
[1688404697057,22.081,19.157,19.154,55.0]
[1688404698480,22.078,19.16,19.154,77.084]
[1688404698662,22.077,19.161,19.154,77.084]
[1688404702270,125.777,19.161,19.149,117.5403]
[1688404702481,55.0,19.16,19.147,22.091]
[1688404702681,182.655,19.157,19.14,22.099]
[1688404702869,20.0,19.156,19.135,56.909]
[1688404703070,182.717,19.15,19.137,22.103]
[1688404703376,182.717,19.15,19.132,194.7837]
[1688404703578,182.771,19.144,19.134,22.106]
[1688404703971,182.771,19.144,19.133,22.107]
[1688404704285,182.771,19.144,19.127,393.2]
[1688404704483,182.771,19.144,19.12,64.88]
[1688404704484,182.771,19.144,19.128,10.83719922]
[1688404705071,182.771,19.144,19.131,22.11]
[1688404705883,182.771,19.144,19.132,20.0]
[1688404706063,182.771,19.144,19.133,22.107]
[1688404709689,182.771,19.144,19.137,22.103]
[1688404710390,78.979,19.144,19.137,22.103]
[1688404712585,78.979,19.144,19.136,22.104]
[1688404714288,22.095,19.144,19.136,22.104]
[1688404716480,22.095,19.144,19.129,56.926]
[1688404716481,55.0,19.143,19.129,56.926]
[1688404716790,79.003,19.139,19.127,56.934]
[1688404717089,79.003,19.139,19.129,22.112]
[1688404717090,182.822,19.139,19.129,22.112]
[1688404717480,182.822,19.139,19.128,22.113]
[1688404717676,182.822,19.139,19.129,22.112]
[1688404718389,182.822,19.139,19.13,77.111]
[1688404718591,182.822,19.139,19.13,55.0]
[1688404719677,182.822,19.139,19.129,55.0]
[1688404720694,182.822,19.139,19.128,55.0]
[1688404720890,182.822,19.139,19.127,55.0]
[1688404722073,182.822,19.139,19.126,55.0]
[1688404722895,55.0,19.138,19.121,94.1874]
[1688404723198,182.877,19.133,19.122,42.12]
[1688404723572,182.877,19.133,19.122,20.0]
[1688404723791,20.0,19.132,19.116,10.83719922]
[1688404723992,79.049,19.128,19.121,22.121]
[1688404724592,79.049,19.128,19.12,22.122]
[1688404725987,182.928,19.128,19.121,55.0]
[1688404726694,182.928,19.128,19.117,22.126]
[1688404728090,182.928,19.128,19.118,55.0]
[1688404728297,182.928,19.128,19.119,22.123]
[1688404728593,182.928,19.128,19.12,55.0]
[1688404729001,182.928,19.128,19.119,55.0]
[1688404729176,182.928,19.128,19.119,77.124]
[1688404730292,79.049,19.128,19.119,87.96119922]
[1688404730598,79.049,19.128,19.12,10.83719922]
[1688404730798,22.115,19.128,19.122,22.12]
[1688404730995,22.115,19.128,19.123,55.0]
[1688404731190,22.115,19.128,19.124,22.118]
[1688404731497,22.115,19.128,19.125,55.0]
[1688404731690,182.926,19.128,19.113,56.975]
[1688404731998,182.926,19.128,19.113,22.13]
[1688404732296,182.926,19.128,19.113,32.96719922]
[1688404734486,182.926,19.128,19.114,55.0]
[1688404734682,182.926,19.128,19.115,22.128]
[1688404734887,182.926,19.128,19.116,55.0]
[1688404735694,182.926,19.128,19.116,77.128]
[1688404736288,79.047,19.128,19.116,87.96519922]
[1688404736982,79.047,19.128,19.117,10.83719922]
[1688404737186,79.047,19.128,19.121,22.122]
[1688404737587,79.047,19.128,19.122,55.0]
[1688404740007,79.047,19.128,19.12,22.122]
[1688404740200,182.926,19.128,19.119,22.123]
[1688404740501,182.926,19.128,19.12,55.0]
[1688404741002,182.926,19.128,19.12,77.123]
[1688404744002,182.926,19.128,19.112,95.7791]
[1688404744206,182.926,19.128,19.114,22.129]
[1688404745597,182.926,19.128,19.115,55.0]
[1688404745904,182.926,19.128,19.115,77.128]
[1688404746614,79.047,19.128,19.115,77.128]
[1688404747098,79.047,19.128,19.115,87.96519922]
[1688404748207,182.926,19.128,19.115,87.96519922]
[1688404759801,79.047,19.128,19.115,87.96519922]
[1688404760403,79.047,19.128,19.116,10.83719922]
[1688404760615,79.047,19.128,19.119,22.123]
[1688404760912,79.047,19.128,19.121,22.121]
[1688404761303,79.047,19.128,19.122,55.0]
[1688404762306,22.112,19.13,19.122,77.12]
[1688404762609,22.11,19.132,19.123,20.0]
[1688404762811,103.82,19.139,19.129,22.112]
[1688404763019,56.9,19.139,19.13,55.0]
[1688404763346,22.104,19.136,19.13,77.111]
[1688404764802,22.104,19.136,19.13,22.111]
[1688404765117,22.104,19.136,19.129,22.111]
[1688404768409,22.104,19.137,19.129,79.04]
[1688404768721,22.104,19.137,19.132,22.109]
[1688404771520,56.899,19.146,19.132,22.109]
[1688404771724,22.098,19.142,19.132,79.029]
[1688404772409,22.098,19.142,19.132,22.109]
[1688404779608,22.098,19.142,19.133,75.0]
[1688404779803,22.097,19.143,19.135,79.014]
[1688404780020,26.73865057,19.154,19.136,55.0]
[1688404780225,22.094,19.145,19.142,22.097]
[1688404780817,22.094,19.145,19.142,21.75341441]
[1688404781525,22.094,19.145,19.136,55.0]
[1688404781713,22.094,19.145,19.14,22.1]
[1688404782129,22.094,19.145,19.139,22.1]
[1688404786021,20.0,19.153,19.139,22.1]
[1688404786329,191.97489159,19.16,19.146,22.093]
[1688404786330,22.089,19.15,19.146,22.093]
[1688404789643,22.089,19.15,19.145,22.093]
[1688404792235,103.726,19.157,19.145,22.093]
[1688404792438,20.0,19.156,19.145,22.093]
[1688404792938,22.084,19.154,19.145,22.093]
[1688404793233,22.084,19.154,19.146,77.093]
[1688404794539,50.24219905,19.165,19.146,77.093]
[1688404794738,22.074,19.163,19.147,20.0]
[1688404795041,56.816,19.168,19.151,182.697]
[1688404795339,22.072,19.165,19.156,78.926]
[1688404795737,22.072,19.165,19.155,22.082]
[1688404795926,22.072,19.165,19.156,22.081]
[1688404796630,22.072,19.165,19.153,56.855]
[1688404796631,22.072,19.165,19.151,56.863]
[1688404796942,78.911,19.161,19.148,22.082]
[1688404797238,22.076,19.161,19.153,22.084]
[1688404798527,22.076,19.161,19.154,55.0]
[1688404798740,22.076,19.161,19.156,22.081]
[1688404799235,22.075,19.162,19.156,22.081]
[1688404800242,22.075,19.162,19.154,55.0]
[1688404800746,50.24219905,19.174,19.155,22.082]
[1688404801045,22.066,19.17,19.156,55.0]
[1688404801243,22.066,19.17,19.163,22.073]
[1688404801925,50.24219905,19.182,19.163,78.901]
[1688404802134,22.054,19.18,19.164,55.0]
[1688404802439,22.053,19.181,19.172,22.062]
[1688404802842,22.053,19.181,19.171,22.063]
[1688404803355,162.02383637,19.19,19.171,22.063]
[1688404803356,22.049,19.185,19.171,22.063]
[1688404803652,20.0,19.184,19.17,22.065]
[1688404803946,22.054,19.18,19.17,22.065]
[1688404804143,22.054,19.18,19.165,99.3401]
[1688404804325,78.831,19.18,19.167,22.068]
[1688404804827,78.831,19.18,19.166,55.0]
[1688404805447,78.831,19.18,19.167,22.069]
[1688404805629,78.831,19.18,19.168,55.0]
[1688404806029,78.831,19.18,19.165,99.3401]
[1688404806225,78.831,19.18,19.167,22.068]
[1688404806445,55.0,19.179,19.167,22.068]
[1688404806635,22.059,19.176,19.167,22.068]
[1688404807547,22.059,19.176,19.165,22.071]
[1688404810351,22.058,19.177,19.165,22.071]
[1688404810546,20.0,19.184,19.166,55.0]
[1688404810847,22.053,19.181,19.171,22.064]
[1688404811546,22.053,19.186,19.171,22.064]
[1688404811732,22.052,19.182,19.171,22.064]
[1688404812048,22.052,19.182,19.172,75.0]
[1688404812361,22.042,19.191,19.175,78.851]
[1688404812542,22.042,19.191,19.176,55.0]
[1688404812852,22.042,19.191,19.18,22.053]
[1688404813338,22.042,19.191,19.181,55.0]
[1688404813644,22.042,19.191,19.175,160.414]
[1688404813848,22.042,19.191,19.173,67.63319922]
[1688404814043,22.042,19.191,19.174,55.0]
[1688404814432,22.042,19.191,19.176,22.058]
[1688404814633,22.048,19.185,19.175,22.059]
[1688404815733,56.749,19.19,19.175,22.059]
[1688404815929,14.67176729,19.198,19.176,55.0]
[1688404815930,56.732,19.196,19.176,55.0]
[1688404816136,22.042,19.191,19.176,55.0]
[1688404816553,22.042,19.191,19.18,22.053]
[1688404817233,22.042,19.191,19.176,77.058]
[1688404817437,22.047,19.186,19.176,77.058]
[1688404818436,22.047,19.186,19.176,55.0]
[1688404818640,22.047,19.186,19.172,20.0]
[1688404818955,22.047,19.186,19.176,22.058]
[1688404819162,22.047,19.186,19.177,55.0]
[1688404819454,22.047,19.186,19.179,22.054]
[1688404819657,22.047,19.186,19.181,22.052]
[1688404820055,56.729,19.197,19.185,22.047]
[1688404820237,22.038,19.194,19.189,22.043]
[1688404820856,22.038,19.194,19.183,97.0597]
[1688404821054,22.038,19.194,19.187,22.046]
[1688404821358,22.038,19.194,19.184,55.0]
[1688404821656,22.038,19.194,19.187,22.045]
[1688404821960,22.038,19.194,19.189,22.042]
[1688404822348,22.038,19.194,19.185,56.76]
[1688404822648,22.038,19.194,19.188,22.043]
[1688404823159,22.037,19.195,19.189,55.0]
[1688404823460,22.037,19.195,19.19,22.042]
[1688404823838,22.037,19.195,19.189,22.042]
[1688404827858,22.037,19.195,19.191,22.041]
[1688404828260,22.036,19.196,19.191,22.041]
[1688404828565,22.035,19.197,19.191,22.041]
[1688404829656,22.035,19.197,19.189,22.043]
[1688404829843,22.035,19.197,19.179,52.37]
[1688404830046,22.035,19.197,19.186,22.047]
[1688404830556,22.035,19.197,19.185,22.047]
[1688404830759,22.035,19.197,19.183,107.89689922]
[1688404831143,22.035,19.197,19.183,119.1097]
[1688404831855,125.54,19.197,19.183,119.1097]
[1688404832751,125.54,19.197,19.183,22.05]
[1688404832946,125.54,19.197,19.18,10.83719922]
[1688404833152,75.0,19.196,19.178,56.783]
[1688404833347,182.328,19.191,19.175,84.5544]
[1688404833662,182.328,19.191,19.175,106.6134]
[1688404834165,87.41,19.19,19.172,56.801]
[1688404834365,87.41,19.19,19.173,42.061]
[1688404834366,182.384,19.185,19.173,42.061]
[1688404835172,182.384,19.185,19.171,22.063]
[1688404835349,75.0,19.184,19.17,22.064]
[1688404835555,75.0,19.184,19.166,56.817]
[1688404835556,182.43,19.18,19.166,56.817]
[1688404835864,182.43,19.18,19.168,22.066]
[1688404836264,55.0,19.179,19.166,22.069]
[1688404836465,55.0,19.179,19.167,22.068]
[1688404836466,78.851,19.176,19.167,22.068]
[1688404836852,76.351,19.176,19.167,22.068]
[1688404839269,19.559,19.176,19.167,22.068]
[1688404839445,56.777,19.181,19.167,22.068]
[1688404839655,22.059,19.176,19.168,55.0]
[1688404839873,22.059,19.176,19.17,22.065]
[1688404840151,22.059,19.176,19.167,10.83719922]
[1688404840353,22.059,19.176,19.169,22.066]
[1688404841269,22.059,19.176,19.163,93.2127]
[1688404841462,22.059,19.176,19.164,55.0]
[1688404841668,22.059,19.176,19.163,104.04989922]
[1688404841857,22.059,19.176,19.166,22.069]
[1688404842473,19.559,19.176,19.166,22.069]
[1688404844777,19.559,19.176,19.163,93.2127]
[1688404844960,55.0,19.175,19.166,22.07]
[1688404845168,78.863,19.173,19.166,22.07]
[1688404845367,78.863,19.173,19.165,22.07]
[1688404847078,75.0,19.172,19.161,22.075]
[1688404847264,78.878,19.169,19.16,22.076]
[1688404847472,78.878,19.169,19.159,22.077]
[1688404847660,78.878,19.169,19.157,56.843]
[1688404847661,78.878,19.169,19.157,22.08]
[1688404848369,78.878,19.169,19.153,10.83719922]
[1688404848562,55.0,19.168,19.151,97.1694]
[1688404848763,22.073,19.163,19.153,22.084]
[1688404848965,22.074,19.163,19.153,125.827]
[1688404849372,19.574,19.163,19.154,10.83719922]
[1688404849573,19.574,19.163,19.156,22.081]
[1688404849778,76.402,19.163,19.156,22.081]
[1688404849978,76.402,19.163,19.153,22.084]
[1688404850973,76.402,19.163,19.153,32.92119922]
[1688404858896,20.0,19.162,19.149,56.868]
[1688404859100,78.92,19.159,19.152,22.085]
[1688404859793,78.92,19.159,19.151,22.086]
[1688404860779,182.631,19.159,19.147,32.92819922]
[1688404861079,182.631,19.159,19.146,92.8724]
[1688404861080,182.631,19.159,19.146,114.9654]
[1688404861703,182.631,19.159,19.146,22.093]
[1688404862486,182.631,19.159,19.147,10.83719922]
[1688404862796,182.631,19.159,19.15,22.088]
[1688404865285,182.631,19.159,19.148,22.09]
[1688404865495,182.631,19.159,19.147,10.83719922]
[1688404865800,182.631,19.159,19.144,22.095]
[1688404866001,182.631,19.159,19.145,55.0]
[1688404866189,182.631,19.159,19.146,22.092]
[1688404866797,182.631,19.159,19.145,77.094]
[1688404867105,182.631,19.159,19.145,55.0]
[1688404867311,182.631,19.159,19.145,77.093]
[1688404867606,182.631,19.159,19.145,87.93019922]
[1688404868707,182.631,19.159,19.146,10.83719922]
[1688404869005,182.631,19.159,19.15,22.088]
[1688404869304,182.631,19.159,19.151,55.0]
[1688404869885,78.92,19.159,19.151,77.087]
[1688404870289,78.92,19.159,19.151,55.0]
[1688404870796,78.92,19.159,19.147,90.4492]
[1688404872090,78.92,19.159,19.147,112.5412]
[1688404872593,78.92,19.159,19.148,55.0]
[1688404872902,78.92,19.159,19.151,22.087]
[1688404873088,78.92,19.159,19.152,55.0]
[1688404873613,78.92,19.159,19.15,22.088]
[1688404873802,78.92,19.159,19.151,55.0]
[1688404874314,78.92,19.159,19.151,77.087]
[1688404874720,78.92,19.159,19.151,55.0]
[1688404875598,78.92,19.159,19.15,55.0]
[1688404876028,78.92,19.159,19.149,22.089]
[1688404876237,78.92,19.159,19.147,90.4492]
[1688404876707,89.25863918,19.159,19.14,32.27]
[1688404876911,182.687,19.153,19.141,42.098]
[1688404879236,182.687,19.153,19.142,77.097]
[1688404879434,182.687,19.153,19.143,42.096]
[1688404879826,182.687,19.153,19.143,20.0]
[1688404880228,182.687,19.153,19.139,56.896]
[1688404880436,20.0,19.152,19.136,10.83719922]
[1688404880638,78.967,19.148,19.139,22.101]
[1688404880937,182.737,19.148,19.139,22.101]
[1688404882337,22.09,19.149,19.139,22.101]
[1688404882529,22.091,19.148,19.142,22.097]
[1688404883021,22.091,19.148,19.14,55.0]
[1688404883221,22.091,19.148,19.139,55.0]
[1688404885240,22.091,19.148,19.136,10.83719922]
[1688404885427,22.091,19.148,19.137,55.0]
[1688404885633,22.091,19.148,19.137,77.102]
[1688404886532,22.091,19.148,19.137,55.0]
[1688404886836,22.091,19.148,19.134,22.107]
[1688404887037,22.091,19.148,19.133,103.0884]
[1688404888144,182.783,19.143,19.133,103.0884]
[1688404888648,182.783,19.143,19.133,80.9814]
[1688404888820,182.783,19.143,19.13,10.83719922]
[1688404889141,20.0,19.142,19.133,22.107]
[1688404889335,22.101,19.14,19.133,22.107]
[1688404890336,22.101,19.14,19.132,22.109]
[1688404891439,22.101,19.14,19.131,22.109]
[1688404891739,22.101,19.14,19.129,120.6985]
[1688404891927,22.101,19.14,19.13,55.0]
[1688404892937,22.101,19.14,19.129,120.6985]
[1688404893241,22.101,19.14,19.129,98.5865]
[1688404893621,22.101,19.14,19.129,120.6985]
[1688404893823,156.9,19.165,19.129,120.6985]
[1688404893824,56.882,19.145,19.13,52.34]
[1688404894041,22.096,19.143,19.13,43.17719922]
[1688404894229,79.001,19.139,19.131,22.109]
[1688404894748,79.001,19.139,19.13,22.111]
[1688404895035,79.001,19.139,19.129,98.5865]
[1688404895441,79.001,19.139,19.128,22.113]
[1688404895621,103.815,19.14,19.122,56.948]
[1688404895622,182.871,19.134,19.122,56.948]
[1688404895826,182.871,19.134,19.123,20.0]
[1688404896017,79.024,19.134,19.125,22.116]
[1688404897144,22.108,19.134,19.128,22.113]
[1688404899424,22.108,19.134,19.128,22.114]
[1688404903039,22.108,19.134,19.129,55.0]
[1688404903245,22.108,19.134,19.13,22.111]
[1688404903434,103.817,19.14,19.131,75.0]
[1688404903435,22.1,19.14,19.131,75.0]
[1688404903631,22.099,19.141,19.133,79.022]
[1688404905656,56.874,19.148,19.134,55.0]
[1688404905947,22.095,19.145,19.139,22.1]
[1688404908440,22.094,19.146,19.139,22.1]
[1688404912560,22.093,19.147,19.139,125.919]
[1688404912758,103.747,19.153,19.139,125.919]
[1688404912943,22.087,19.152,19.144,78.976]
[1688404913129,160.557,19.159,19.144,182.768]
[1688404913335,22.081,19.157,19.148,78.961]
[1688404913541,56.842,19.159,19.148,78.961]
[1688404913542,103.682,19.165,19.149,55.0]
[1688404913740,22.08,19.158,19.154,22.084]
[1688404914343,22.079,19.158,19.153,22.084]
[1688404914548,22.079,19.158,19.151,22.087]
[1688404914737,22.079,19.158,19.148,56.87]
[1688404916153,22.079,19.158,19.151,22.086]
[1688404917747,56.866,19.166,19.151,22.086]
[1688404918068,22.074,19.163,19.155,78.933]
[1688404918867,56.817,19.167,19.155,78.933]
[1688404919069,22.069,19.167,19.16,22.077]
[1688404919856,22.069,19.167,19.158,22.079]
[1688404920762,125.736,19.167,19.158,22.079]
[1688404922273,125.736,19.167,19.155,56.851]
[1688404922274,125.736,19.167,19.156,22.08]
[1688404922477,123.236,19.167,19.156,22.08]
[1688404924069,55.0,19.166,19.155,22.082]
[1688404924253,78.903,19.163,19.155,22.082]
[1688404924775,22.074,19.163,19.155,22.082]
[1688404925076,22.073,19.164,19.156,55.0]
[1688404925257,22.073,19.164,19.161,22.075]
[1688404927370,103.638,19.173,19.161,22.075]
[1688404927559,20.0,19.172,19.161,22.075]
[1688404927767,17.5,19.172,19.161,22.075]
[1688404928361,22.065,19.171,19.162,20.0]
[1688404928674,56.793,19.175,19.164,182.577]
[1688404928859,22.062,19.174,19.164,182.577]